bitfinex/quotes_SOLUSD_20230120
["timestamp","ask_amount","ask_price","bid_price","bid_amount"]
[1674172945758,35.19,21.313,21.283,18.92]
[1674172945967,58.95576951,21.31,21.283,17.96]
[1674172946186,4.41224,21.309,21.283,17.96]
[1674172946402,10.0,21.308,21.284,10.0]
[1674172946626,10.0,21.308,21.285,17.96]
[1674172946818,35.2,21.307,21.285,17.96]
[1674172947228,10.0,21.306,21.285,17.96]
[1674172947645,35.21,21.305,21.284,10.0]
[1674172947904,10.0,21.304,21.284,10.0]
[1674172948094,10.0,21.304,21.282,10.0]
[1674172948283,35.21,21.303,21.282,10.0]
[1674172948616,10.0,21.302,21.28,110.5482]
[1674172948806,10.0,21.302,21.278,10.0]
[1674172949019,35.21,21.301,21.281,18.30324719]
[1674172949341,10.0,21.3,21.278,10.0]
[1674172949753,10.0,21.298,21.276,18.30324719]
[1674172949967,1.92,21.297,21.274,108.4766]
[1674172950190,4.41224,21.296,21.274,108.4766]
[1674172950505,10.0,21.294,21.274,108.4766]
[1674172950919,35.23,21.293,21.275,28.30324719]
[1674172951117,35.22,21.295,21.276,0.96]
[1674172951325,35.22,21.297,21.277,10.96]
[1674172951544,35.22,21.297,21.278,17.96]
[1674172951777,35.22,21.297,21.279,0.96]
[1674172952200,35.22,21.299,21.279,0.96]
[1674172952417,35.21,21.303,21.281,10.0]
[1674172952735,35.22,21.298,21.281,10.0]
[1674172953054,23.75576951,21.302,21.277,10.0]
[1674172953055,10.0,21.301,21.277,10.0]
[1674172953248,35.22,21.297,21.277,10.0]
[1674172953574,10.0,21.296,21.277,10.0]
[1674172953789,45.22,21.296,21.277,10.0]
[1674172953972,10.0,21.296,21.277,10.0]
[1674172954182,10.0,21.294,21.277,10.0]
[1674172954723,35.22,21.295,21.278,18.30324719]
[1674172954946,35.22,21.298,21.279,10.0]
[1674172955138,35.21,21.3,21.28,17.96]
[1674172955349,35.21,21.3,21.281,10.0]
[1674172955558,35.21,21.3,21.282,18.92]
[1674172955775,33.75576951,21.308,21.282,18.92]
[1674172955776,35.21,21.303,21.282,18.92]
[1674172955985,33.75576951,21.308,21.283,10.0]
[1674172955986,35.21,21.3,21.283,10.0]
[1674172956202,35.21,21.3,21.285,10.0]
[1674172956409,35.21,21.3,21.286,0.96]
[1674172956728,35.21,21.303,21.283,10.0]
[1674172956942,10.0,21.302,21.284,17.0]
[1674172957338,10.0,21.3,21.284,17.0]
[1674172957543,35.21,21.301,21.284,17.0]
[1674172957969,10.0,21.303,21.285,10.96]
[1674172958182,10.0,21.303,21.286,17.0]
[1674172958400,35.21,21.304,21.286,17.0]
[1674172958604,35.21,21.304,21.287,11.92]
[1674172958816,35.21,21.304,21.288,17.0]
[1674172959019,35.21,21.304,21.289,10.0]
[1674172959228,35.21,21.304,21.29,17.0]
[1674172959457,35.21,21.304,21.289,10.0]
[1674172959656,35.21,21.305,21.29,18.92]
[1674172959967,35.21,21.305,21.291,10.0]
[1674172960186,35.21,21.305,21.292,17.96]
[1674172960377,35.21,21.305,21.29,17.0]
[1674172960592,10.0,21.304,21.28,27.16]
[1674172960799,10.0,21.304,21.286,1.92]
[1674172961031,10.0,21.302,21.286,1.92]
[1674172961650,35.21,21.301,21.286,1.92]
[1674172961863,45.21,21.302,21.286,18.92]
[1674172962074,10.0,21.302,21.286,18.92]
[1674172963141,35.21,21.303,21.286,18.92]
[1674172963142,35.21,21.303,21.288,10.0]
[1674172963359,35.2,21.311,21.289,38.92]
[1674172963554,10.0,21.31,21.29,10.0]
[1674172963887,35.2,21.31,21.291,18.92]
[1674172964104,108.0777,21.318,21.292,10.0]
[1674172964105,35.19,21.312,21.292,10.0]
[1674172964289,35.19,21.316,21.293,1.92]
[1674172964511,10.0,21.315,21.293,37.22324719]
[1674172964714,10.0,21.315,21.294,10.0]
[1674172964932,10.0,21.315,21.296,10.0]
[1674172965141,35.19,21.314,21.297,0.96]
[1674172965357,35.19,21.314,21.297,18.92]
[1674172965568,10.0,21.313,21.297,18.92]
[1674172966921,35.19,21.314,21.297,18.92]
[1674172967238,35.19,21.314,21.298,10.0]
[1674172967437,35.18,21.319,21.299,18.92]
[1674172967646,35.19,21.313,21.299,18.92]
[1674172967859,10.0,21.317,21.299,18.92]
[1674172968087,35.19,21.316,21.299,17.0]
[1674172968301,10.0,21.315,21.297,17.0]
[1674172968504,10.0,21.315,21.298,0.96]
[1674172968718,35.19,21.314,21.299,0.96]
[1674172969036,10.0,21.313,21.299,0.96]
[1674172970072,35.19,21.314,21.299,0.96]
[1674172970292,10.0,21.315,21.299,17.96]
[1674172970610,10.0,21.315,21.3,0.96]
[1674172970822,35.19,21.314,21.301,0.96]
[1674172971141,10.0,21.315,21.301,0.96]
[1674172971142,45.19,21.315,21.301,0.96]
[1674172971350,10.0,21.315,21.301,0.96]
[1674172971567,10.0,21.315,21.302,0.96]
[1674172971873,35.19,21.317,21.303,0.96]
[1674172972081,35.18,21.318,21.304,0.96]
[1674172972279,397.4,21.344,21.305,0.96]
[1674172972280,35.17,21.325,21.305,0.96]
[1674172972493,35.17,21.325,21.306,0.96]
[1674172972698,35.17,21.325,21.307,0.96]
[1674172972912,10.0,21.324,21.308,0.96]
[1674172973118,10.0,21.324,21.309,0.96]
[1674172973342,10.0,21.324,21.31,0.96]
[1674172973549,45.17,21.328,21.311,0.96]
[1674172973743,35.16,21.335,21.312,0.96]
[1674172973953,148.3616,21.339,21.312,0.96]
[1674172974191,35.16,21.334,21.312,17.0]
[1674172974405,73.31800951,21.338,21.312,17.0]
[1674172974728,35.16,21.333,21.307,10.0]
[1674172974940,24.41224,21.332,21.3,10.0]
[1674172975250,33.33224,21.331,21.3,10.0]
[1674172975463,24.41224,21.33,21.3,10.0]
[1674172975662,10.0,21.329,21.305,18.30324719]
[1674172975880,20.0,21.328,21.305,18.30324719]
[1674172976206,35.17,21.328,21.306,10.0]
[1674172976395,35.17,21.329,21.306,10.0]
[1674172976600,35.17,21.327,21.307,18.30324719]
[1674172976811,45.17,21.328,21.308,17.96]
[1674172977035,10.0,21.325,21.309,10.96]
[1674172977231,35.17,21.327,21.31,17.96]
[1674172977435,35.17,21.327,21.311,0.96]
[1674172977649,35.17,21.329,21.311,10.96]
[1674172977883,35.17,21.326,21.312,17.96]
[1674172978195,10.0,21.327,21.313,0.96]
[1674172978400,35.17,21.325,21.314,0.96]
[1674172978618,35.17,21.326,21.315,0.96]
[1674172978822,35.17,21.326,21.316,0.96]
[1674172979139,70.3,21.337,21.317,0.96]
[1674172979347,70.3,21.337,21.318,0.96]
[1674172979563,10.0,21.336,21.319,0.96]
[1674172979875,10.0,21.336,21.318,0.96]
[1674172980089,35.16,21.335,21.319,0.96]
[1674172980400,35.16,21.335,21.32,0.96]
[1674172980610,70.3,21.337,21.321,0.96]
[1674172980818,10.0,21.336,21.322,0.96]
[1674172981036,45.15,21.336,21.323,0.96]
[1674172981230,45.15,21.336,21.322,0.96]
[1674172981231,45.15,21.336,21.321,18.30324719]
[1674172981444,35.15,21.336,21.322,18.92]
[1674172981636,35.15,21.336,21.324,10.0]
[1674172981853,35.15,21.337,21.325,1.92]
[1674172982187,35.15,21.337,21.326,28.30324719]
[1674172982381,35.15,21.337,21.327,18.92]
[1674172982589,35.13,21.35,21.328,10.0]
[1674172982796,35.12,21.36,21.329,21.92]
[1674172983007,10.0,21.36,21.331,10.0]
[1674172983233,35.11,21.361,21.333,6.58785796]
[1674172983551,35.11,21.361,21.335,5.29438383]
[1674172983762,149.9513,21.372,21.337,6.42027355]
[1674172983962,35.12,21.36,21.338,37.96]
[1674172984189,45.1,21.371,21.339,10.96]
[1674172984378,45.1,21.371,21.34,37.96]
[1674172984589,45.1,21.371,21.341,0.96]
[1674172984921,45.1,21.371,21.342,0.96]
[1674172985228,50.67085634,21.37,21.326,16.62128224]
[1674172985555,75.11655015,21.369,21.326,10.0]
[1674172985873,246.40021199,21.368,21.32,18.30324719]
[1674172986062,178.36,21.367,21.32,18.30324719]
[1674172986396,5.37224,21.366,21.321,45.18]
[1674172986579,182.77224,21.365,21.32,18.30324719]
[1674172986791,5.37224,21.364,21.321,35.18]
[1674172987015,5.37224,21.364,21.316,109.5239]
[1674172987016,182.77224,21.363,21.319,18.30324719]
[1674172987223,14.41224,21.362,21.319,18.30324719]
[1674172987444,42.37224,21.361,21.319,18.30324719]
[1674172987756,155.28780184,21.36,21.319,25.413093]
[1674172987965,10.0,21.358,21.32,10.0]
[1674172988178,24.41224,21.357,21.32,33.88440854]
[1674172988387,0.96,21.356,21.321,18.30324719]
[1674172988586,10.0,21.354,21.321,18.30324719]
[1674172988787,24.41224,21.353,21.321,18.30324719]
[1674172988999,15.37224,21.352,21.322,20.0]
[1674172989330,25.37224,21.351,21.323,18.30324719]
[1674172989539,10.0,21.349,21.323,18.30324719]
[1674172989751,38.92,21.348,21.323,18.30324719]
[1674172989963,10.0,21.347,21.323,18.30324719]
[1674172990158,0.96,21.346,21.323,18.30324719]
[1674172990362,35.14,21.346,21.324,0.96]
[1674172990573,45.14,21.347,21.325,0.96]
[1674172990817,45.14,21.347,21.325,54.56649438]
[1674172991118,45.14,21.347,21.326,19.26324719]
[1674172991304,10.0,21.347,21.327,17.96]
[1674172991517,35.14,21.346,21.328,0.96]
[1674172991729,35.14,21.346,21.233,289.88939301]
[1674172991730,20.0,21.345,21.311,10.0]
[1674172991947,10.0,21.344,21.311,15.61814507]
[1674172992258,45.14,21.344,21.312,24.2084072]
[1674172992477,45.14,21.344,21.313,14.21272708]
[1674172992785,45.14,21.344,21.314,7.66638767]
[1674172993000,10.0,21.344,21.315,17.60712336]
[1674172993223,35.14,21.343,21.317,7.22012502]
[1674172993427,35.14,21.346,21.319,16.28379765]
[1674172993646,10.0,21.347,21.32,38.92]
[1674172993843,10.0,21.347,21.321,10.0]
[1674172994042,10.0,21.347,21.322,18.92]
[1674172994258,35.14,21.348,21.324,16.06430653]
[1674172994582,153.6586,21.351,21.325,46.75839069]
[1674172994796,153.6586,21.351,21.326,10.0]
[1674172995000,153.6586,21.351,21.328,10.0]
[1674172995197,153.6586,21.351,21.329,38.92]
[1674172995403,153.6586,21.351,21.329,74.09]
[1674172995618,153.6586,21.351,21.33,18.30324719]
[1674172995846,45.13,21.351,21.332,10.0]
[1674172996059,10.0,21.351,21.333,17.96]
[1674172996251,35.13,21.353,21.333,17.96]
[1674172996252,10.0,21.355,21.334,10.96]
[1674172996463,10.0,21.355,21.335,17.96]
[1674172996672,10.0,21.355,21.336,0.96]
[1674172996887,10.0,21.355,21.337,0.96]
[1674172997100,10.0,21.355,21.338,0.96]
[1674172997427,45.13,21.354,21.339,0.96]
[1674172997619,45.13,21.354,21.34,0.96]
[1674172997951,45.13,21.354,21.341,0.96]
[1674172998675,10.0,21.354,21.341,0.96]
[1674172999300,45.11,21.361,21.342,0.96]
[1674172999510,10.0,21.361,21.343,0.96]
[1674172999720,10.0,21.361,21.344,0.96]
[1674172999928,10.0,21.361,21.345,0.96]
[1674173000146,10.0,21.361,21.346,0.96]
[1674173000346,10.0,21.361,21.347,0.96]
[1674173000768,10.0,21.361,21.348,0.96]
[1674173001097,10.0,21.361,21.349,0.96]
[1674173001415,10.0,21.361,21.329,117.3376]
[1674173001611,10.0,21.359,21.329,117.3376]
[1674173001825,4.41224,21.358,21.329,117.3376]
[1674173002035,83.28800951,21.358,21.333,18.30324719]
[1674173002249,0.96,21.357,21.333,18.30324719]
[1674173002458,10.0,21.356,21.333,18.30324719]
[1674173002671,45.12,21.356,21.333,18.30324719]
[1674173002992,45.12,21.356,21.33,35.16]
[1674173003205,10.0,21.354,21.331,19.26324719]
[1674173003629,10.0,21.352,21.332,18.30324719]
[1674173003961,10.0,21.352,21.333,0.96]
[1674173004144,10.0,21.352,21.334,0.96]
[1674173004563,53.09,21.351,21.325,35.17]
[1674173004904,53.09,21.351,21.322,35.18]
[1674173004905,10.0,21.349,21.322,35.18]
[1674173005213,10.0,21.347,21.319,35.18]
[1674173005419,4.41224,21.346,21.309,15.22678482]
[1674173005627,27.96,21.345,21.313,18.30324719]
[1674173005832,0.96,21.344,21.319,18.30324719]
[1674173006163,0.96,21.343,21.319,18.30324719]
[1674173006346,10.96,21.343,21.32,10.0]
[1674173006567,10.0,21.341,21.321,17.96]
[1674173006780,10.0,21.341,21.322,20.0]
[1674173006998,10.0,21.341,21.322,38.30324719]
[1674173007400,10.0,21.341,21.323,18.30324719]
[1674173007632,10.0,21.341,21.324,20.0]
[1674173010147,10.0,21.341,21.325,18.92]
[1674173010463,10.0,21.341,21.32,35.18]
[1674173010464,0.96,21.34,21.32,35.18]
[1674173010657,10.96,21.339,21.312,10.0]
[1674173010871,37.96,21.338,21.312,10.0]
[1674173011088,0.96,21.337,21.315,18.30324719]
[1674173011295,0.96,21.336,21.315,18.30324719]
[1674173011518,0.96,21.335,21.315,18.30324719]
[1674173011833,10.96,21.335,21.315,18.30324719]
[1674173012048,10.0,21.335,21.315,18.30324719]
[1674173012439,10.0,21.335,21.317,10.0]
[1674173012779,10.0,21.337,21.318,36.60649438]
[1674173012974,10.0,21.337,21.319,18.92]
[1674173013384,10.0,21.337,21.32,18.30324719]
[1674173013599,10.0,21.337,21.321,18.92]
[1674173013819,10.0,21.337,21.321,17.0]
[1674173014022,10.0,21.337,21.319,17.0]
[1674173014435,10.0,21.337,21.315,45.19]
[1674173014643,1.92,21.336,21.315,35.19]
[1674173014881,1.92,21.336,21.316,36.60649438]
[1674173015195,10.0,21.337,21.314,35.19]
[1674173015402,10.0,21.337,21.316,35.19]
[1674173015616,10.0,21.337,21.315,10.0]
[1674173015802,10.0,21.337,21.317,18.30324719]
[1674173016008,1.92,21.336,21.318,18.92]
[1674173016228,1.92,21.336,21.318,1.92]
[1674173016552,1.92,21.336,21.316,35.19]
[1674173016770,63.32800951,21.335,21.297,35.22]
[1674173016971,4.41224,21.334,21.308,35.2]
[1674173017181,10.96,21.333,21.309,20.0]
[1674173017380,10.0,21.331,21.309,20.0]
[1674173017587,18.92,21.33,21.309,20.0]
[1674173017812,10.0,21.329,21.301,30.0]
[1674173018026,18.92,21.328,21.308,18.30324719]
[1674173018229,18.92,21.328,21.309,38.92]
[1674173018230,1.92,21.328,21.309,38.92]
[1674173018440,1.92,21.328,21.309,74.12]
[1674173018659,1.92,21.328,21.309,73.16]
[1674173018875,1.92,21.328,21.309,37.96]
[1674173019065,10.0,21.327,21.309,73.16]
[1674173019278,1.92,21.326,21.309,73.16]
[1674173019705,1.92,21.326,21.309,55.2]
[1674173020983,1.92,21.326,21.303,35.21]
[1674173021175,1.92,21.326,21.285,109.8177]
[1674173021176,39.58224,21.325,21.3,35.21]
[1674173021386,39.58224,21.325,21.299,18.30324719]
[1674173021592,52.67576951,21.324,21.299,18.30324719]
[1674173021805,28.92,21.324,21.3,35.21]
[1674173022018,10.0,21.322,21.299,53.52324719]
[1674173022215,18.92,21.321,21.299,18.30324719]
[1674173022431,151.6784,21.323,21.299,18.30324719]
[1674173022642,116.4984,21.323,21.3,45.21]
[1674173023055,116.4984,21.323,21.302,10.0]
[1674173023477,116.4984,21.323,21.304,10.0]
[1674173023707,116.4984,21.323,21.305,18.92]
[1674173023911,116.4984,21.323,21.306,10.0]
[1674173024120,116.4984,21.323,21.307,17.96]
[1674173024336,116.4984,21.323,21.307,18.92]
[1674173024550,10.0,21.322,21.307,18.92]
[1674173025682,116.4984,21.323,21.307,18.92]
[1674173025894,45.17,21.328,21.308,35.2]
[1674173026125,145.035,21.332,21.309,18.92]
[1674173026335,109.875,21.332,21.31,20.0]
[1674173026549,109.875,21.332,21.312,10.0]
[1674173026861,109.875,21.332,21.313,18.92]
[1674173027063,109.875,21.332,21.314,10.0]
[1674173027261,109.875,21.332,21.315,1.92]
[1674173027468,109.875,21.332,21.316,10.0]
[1674173027805,109.875,21.332,21.317,1.92]
[1674173028243,109.875,21.332,21.317,18.92]
[1674173028427,35.15,21.341,21.319,10.0]
[1674173028636,116.4646,21.342,21.32,38.92]
[1674173028955,23.75576951,21.347,21.321,10.0]
[1674173029164,23.75576951,21.347,21.322,20.96]
[1674173029379,35.14,21.346,21.323,17.96]
[1674173029595,10.0,21.345,21.324,30.96]
[1674173029907,10.0,21.345,21.325,17.96]
[1674173030094,33.55320171,21.344,21.326,0.96]
[1674173030309,10.0,21.343,21.326,0.96]
[1674173030543,33.75576951,21.343,21.326,0.96]
[1674173030742,58.90576951,21.342,21.326,0.96]
[1674173031065,10.0,21.341,21.326,0.96]
[1674173031464,10.0,21.341,21.326,10.96]
[1674173031675,10.0,21.341,21.327,17.0]
[1674173032435,10.0,21.343,21.328,11.92]
[1674173032620,10.0,21.343,21.329,17.0]
[1674173033036,10.0,21.343,21.328,1.92]
[1674173033272,33.75576951,21.343,21.328,1.92]
[1674173033794,0.96,21.342,21.321,35.18]
[1674173033987,10.0,21.341,21.322,20.0]
[1674173034200,1.92,21.34,21.322,20.0]
[1674173034626,1.92,21.34,21.321,20.0]
[1674173035038,1.92,21.34,21.322,18.92]
[1674173035247,1.92,21.34,21.319,35.18]
[1674173035461,45.15,21.339,21.315,35.19]
[1674173035667,21.92,21.338,21.315,35.19]
[1674173035877,27.0,21.337,21.31,35.2]
[1674173036092,1.92,21.336,21.31,35.2]
[1674173036304,1.92,21.336,21.311,10.0]
[1674173036520,10.0,21.334,21.311,10.0]
[1674173036734,1.92,21.333,21.312,35.19]
[1674173036936,1.92,21.333,21.314,10.0]
[1674173037153,10.0,21.334,21.314,10.0]
[1674173037364,10.0,21.336,21.315,35.19]
[1674173037577,10.0,21.336,21.316,27.96]
[1674173037885,127.0801,21.337,21.317,10.96]
[1674173038095,127.0801,21.337,21.318,17.96]
[1674173038313,127.0801,21.337,21.319,10.96]
[1674173038521,127.0801,21.337,21.32,17.96]
[1674173038729,127.0801,21.337,21.321,0.96]
[1674173038926,127.0801,21.337,21.322,0.96]
[1674173042401,35.15,21.34,21.322,10.96]
[1674173042614,153.9011,21.343,21.323,37.96]
[1674173042926,35.14,21.345,21.324,0.96]
[1674173043139,10.0,21.347,21.325,0.96]
[1674173043361,10.0,21.347,21.326,10.96]
[1674173043577,10.0,21.347,21.327,17.96]
[1674173043784,10.0,21.347,21.327,53.13]
[1674173043991,10.0,21.347,21.328,10.96]
[1674173044211,10.0,21.347,21.329,17.96]
[1674173044400,10.0,21.347,21.33,10.96]
[1674173044609,10.0,21.347,21.331,17.96]
[1674173044840,10.0,21.347,21.332,0.96]
[1674173045027,10.0,21.347,21.333,0.96]
[1674173045240,10.0,21.347,21.334,0.96]
[1674173045451,128.7611,21.35,21.335,0.96]
[1674173045674,20.0,21.348,21.336,0.96]
[1674173045894,20.0,21.348,21.337,0.96]
[1674173046105,20.0,21.348,21.338,0.96]
[1674173046524,10.0,21.35,21.338,0.96]
[1674173046844,10.0,21.35,21.339,0.96]
[1674173047028,10.0,21.35,21.34,0.96]
[1674173047239,10.0,21.35,21.341,0.96]
[1674173047559,10.0,21.35,21.342,0.96]
[1674173047775,10.0,21.35,21.334,35.16]
[1674173047992,10.0,21.35,21.318,117.8604]
[1674173047993,10.0,21.35,21.329,149.145]
[1674173048187,10.0,21.35,21.33,20.0]
[1674173048510,61.71576951,21.349,21.323,114.6437]
[1674173048724,5.37224,21.348,21.323,114.6437]
[1674173048928,17.96,21.347,21.323,114.6437]
[1674173049139,10.0,21.345,21.323,114.6437]
[1674173049574,37.06,21.344,21.323,114.6437]
[1674173049764,10.0,21.343,21.323,114.6437]
[1674173050201,10.0,21.341,21.323,114.6437]
[1674173050722,10.0,21.341,21.324,20.96]
[1674173051149,10.0,21.341,21.324,0.96]
[1674173051359,10.0,21.341,21.325,0.96]
[1674173051672,10.0,21.341,21.326,0.96]
[1674173051879,10.0,21.341,21.327,0.96]
[1674173052073,10.0,21.341,21.328,0.96]
[1674173052282,10.0,21.348,21.329,0.96]
[1674173052492,151.3858,21.355,21.329,37.96]
[1674173052707,151.3858,21.355,21.33,40.81916521]
[1674173052939,116.2658,21.355,21.332,10.0]
[1674173053120,116.2658,21.355,21.333,0.96]
[1674173053331,116.2658,21.355,21.333,73.12]
[1674173053678,116.2658,21.355,21.334,0.96]
[1674173055450,116.2658,21.355,21.335,0.96]
[1674173055676,116.2658,21.355,21.336,0.96]
[1674173055891,116.2658,21.355,21.337,0.96]
[1674173056076,116.2658,21.355,21.338,0.96]
[1674173056291,151.3858,21.355,21.338,0.96]
[1674173056501,37.05,21.353,21.333,37.0]
[1674173056712,37.05,21.353,21.333,17.0]
[1674173056934,23.75576951,21.352,21.333,17.0]
[1674173057150,23.75576951,21.352,21.28,24.15744942]
[1674173057151,10.0,21.35,21.321,35.18]
[1674173057366,20.96,21.349,21.321,35.18]
[1674173057544,10.0,21.347,21.32,35.18]
[1674173057754,1.92,21.346,21.322,35.18]
[1674173057974,54.06,21.346,21.321,35.18]
[1674173058196,10.0,21.345,21.321,35.18]
[1674173058392,1.92,21.344,21.322,20.0]
[1674173058594,37.06,21.344,21.321,35.18]
[1674173058809,35.14,21.344,21.321,35.18]
[1674173059014,35.14,21.344,21.322,18.30206491]
[1674173059247,10.0,21.343,21.323,10.0]
[1674173059464,10.0,21.343,21.323,45.18]
[1674173059778,10.0,21.343,21.323,35.18]
[1674173059988,10.0,21.343,21.321,35.18]
[1674173060387,37.07,21.342,21.321,35.18]
[1674173060597,37.07,21.342,21.32,114.6891]
[1674173060925,10.0,21.341,21.321,20.0]
[1674173061119,10.0,21.341,21.322,10.96]
[1674173061330,10.0,21.341,21.323,20.0]
[1674173061560,10.0,21.341,21.324,0.96]
[1674173061974,10.0,21.339,21.321,35.18]
[1674173062181,20.96,21.338,21.315,35.19]
[1674173062391,0.96,21.337,21.315,35.19]
[1674173062592,10.0,21.336,21.315,35.19]
[1674173063036,10.0,21.336,21.314,35.19]
[1674173063252,10.0,21.334,21.314,35.19]
[1674173064193,10.0,21.334,21.315,17.0]
[1674173064606,10.0,21.334,21.316,0.96]
[1674173065034,10.0,21.334,21.317,0.96]
[1674173065220,10.0,21.334,21.318,0.46]
[1674173065647,10.0,21.334,21.317,17.96]
[1674173067430,10.0,21.334,21.318,10.96]
[1674173067655,10.0,21.334,21.319,17.96]
[1674173067847,10.0,21.334,21.32,0.96]
[1674173068070,117.8578,21.335,21.321,0.96]
[1674173068285,117.8578,21.335,21.322,0.96]
[1674173068827,10.0,21.334,21.322,0.96]
[1674173073333,10.0,21.334,21.316,35.19]
[1674173073558,10.0,21.334,21.313,10.0]
[1674173073559,68.91576951,21.334,21.313,10.0]
[1674173073873,0.96,21.333,21.313,10.0]
[1674173074059,1.92,21.333,21.313,10.0]
[1674173074482,1.92,21.333,21.31,10.0]
[1674173074483,23.75576951,21.332,21.31,10.0]
[1674173074814,10.0,21.33,21.307,110.8353]
[1674173075135,120.11600914,21.329,21.307,110.8353]
[1674173075332,10.0,21.328,21.307,110.8353]
[1674173075537,21.92,21.327,21.307,110.8353]
[1674173075741,10.0,21.326,21.307,110.8353]
[1674173077029,10.0,21.326,21.308,10.0]
[1674173077429,10.0,21.326,21.307,110.8353]
[1674173077633,1.92,21.325,21.308,18.92]
[1674173080258,1.92,21.325,21.304,35.21]
[1674173080472,10.0,21.324,21.304,35.21]
[1674173080675,1.92,21.323,21.304,35.21]
[1674173081317,1.92,21.323,21.298,113.9892]
[1674173081318,35.18,21.322,21.3,35.21]
[1674173081530,35.18,21.322,21.298,113.9892]
[1674173081531,30.0,21.321,21.298,149.2092]
[1674173081731,30.0,21.321,21.299,10.0]
[1674173082167,30.0,21.321,21.3,35.21]
[1674173082582,1.92,21.32,21.299,45.22]
[1674173084068,1.92,21.32,21.3,17.96]
[1674173084378,45.18,21.321,21.3,17.96]
[1674173084592,10.0,21.321,21.301,56.17]
[1674173084814,10.0,21.321,21.303,10.0]
[1674173085009,10.0,21.321,21.304,18.92]
[1674173085520,21.92,21.32,21.304,18.92]
[1674173085728,10.0,21.319,21.304,1.92]
[1674173085939,20.0,21.318,21.302,17.0]
[1674173086167,20.0,21.318,21.303,1.92]
[1674173086377,10.0,21.317,21.303,1.92]
[1674173089013,10.0,21.317,21.301,17.0]
[1674173089217,10.0,21.317,21.302,1.92]
[1674173089624,10.0,21.317,21.302,18.92]
[1674173091012,20.0,21.318,21.302,18.92]
[1674173091199,10.0,21.321,21.302,54.13]
[1674173091410,10.0,21.321,21.303,10.0]
[1674173091728,10.0,21.323,21.305,10.0]
[1674173091930,10.0,21.323,21.306,17.96]